fUST/lending_fUST_20250530
["ID","MTS","AMOUNT","RATE_DAILY","PERIOD"]
[362982849,1748542253956,-2070.61,0.00020273,2]
[362982850,1748542253966,-430.0,0.00020273,2]
[362982851,1748542253975,-430.0,0.00020273,2]
[362982852,1748542253984,-430.0,0.00020273,2]
[362982853,1748542253993,-430.0,0.00020273,2]
[362982854,1748542254002,-2731.81,0.00020273,2]
[362982855,1748542254011,-7146.31,0.00020273,2]
[362982856,1748542254020,-430.0,0.00020273,2]
[362982857,1748542254030,-430.0,0.00020273,2]
[362982858,1748542254039,-430.0,0.00020273,2]
[362982859,1748542254049,-2451.38,0.00020273,2]
[362982860,1748542254058,-514.69,0.00020273,2]
[362982861,1748542254068,-178.77994709,0.00020273,2]
[362982862,1748542254077,-430.0,0.00020273,2]
[362982863,1748542254087,-430.0,0.00020273,2]
[362982864,1748542254097,-310.0,0.00020273,2]
[362982865,1748542254108,-430.0,0.00020273,2]
[362982866,1748542254118,-1063.98,0.00020273,2]
[362982867,1748542254129,-430.0,0.00020273,2]
[362982868,1748542254139,-1394.97,0.00020273,2]
[362982869,1748542254148,-6270.05,0.00020273,2]
[362982870,1748542254159,-430.0,0.00020273,2]
[362982871,1748542254168,-430.0,0.00020273,2]
[362982872,1748542254177,-565.28984581,0.00020273,2]
[362982873,1748542254187,-290.0,0.00020273,2]
[362982874,1748542254195,-6482.22,0.00020273,2]
[362982875,1748542254206,-3164.14,0.00020273,2]
[362982876,1748542254217,-430.0,0.00020273,2]
[362982877,1748542254227,-2152.2,0.00020273,2]
[362982878,1748542254238,-1252.48,0.00020273,2]
[362982879,1748542254248,-430.0,0.00020273,2]
[362982880,1748542254258,-3469.37,0.00020273,2]
[362982881,1748542254267,-2725.56,0.00020273,2]
[362982882,1748542254277,-430.0,0.00020273,2]
[362982883,1748542254286,-290.0,0.00020273,2]
[362982884,1748542254296,-4404.76,0.00020273,2]
[362982885,1748542254305,-430.0,0.00020273,2]
[362982886,1748542254314,-490.0,0.00020273,2]
[362982887,1748542254323,-430.0,0.00020273,2]
[362982888,1748542254332,-2998.31,0.00020273,2]
[362982889,1748542254342,-650.63,0.00020273,2]
[362982890,1748542254351,-2687.64,0.00020273,2]
[362982891,1748542254360,-3760.2,0.00020273,2]
[362982892,1748542254369,-430.0,0.00020273,2]
[362982893,1748542254379,-488.51,0.00020273,2]
[362982894,1748542254388,-430.0,0.00020273,2]
[362982895,1748542254396,-333.56687481,0.00020273,2]
[362982896,1748542254405,-5322.44,0.00020273,2]
[362982897,1748542254414,-430.0,0.00020273,2]
[362982898,1748542254424,-430.0,0.00020273,2]
[362982899,1748542254433,-3427.42,0.00020273,2]
[362982900,1748542254443,-677.52,0.00020273,2]
[362982901,1748542254452,-430.0,0.00020273,2]
[362982902,1748542254462,-430.0,0.00020273,2]
[362982903,1748542254471,-430.0,0.00020273,2]
[362982904,1748542254480,-818.87,0.00020273,2]
[362982905,1748542254490,-430.0,0.00020273,2]
[362982906,1748542254499,-430.0,0.00020273,2]
[362982907,1748542254508,-163.66305584,0.00020273,2]
[362982908,1748542254518,-432.38763229,0.00020273,2]
[362982909,1748542254527,-793.39,0.00020273,2]
[362982910,1748542254537,-481.49,0.00020273,2]
[362982911,1748542254546,-1482.97,0.00020273,2]
[362982912,1748542254555,-2584.94,0.00020273,2]
[362982913,1748542254564,-430.0,0.00020273,2]
[362982914,1748542254574,-430.0,0.00020273,2]
[362982915,1748542254583,-430.0,0.00020273,2]
[362982916,1748542254593,-590.34,0.00020273,2]
[362982917,1748542254602,-1878.48,0.00020273,2]
[362982918,1748542254611,-430.0,0.00020273,2]
[362982919,1748542254620,-3294.08,0.00020273,2]
[362982920,1748542254630,-430.0,0.00020273,2]
[362982921,1748542254639,-490.0,0.00020273,2]
[362982922,1748542254649,-430.0,0.00020273,2]
[362982923,1748542254659,-430.0,0.00020273,2]
[362982924,1748542254668,-178.41876216,0.00020273,2]
[362982925,1748542254678,-430.0,0.00020273,2]
[362982926,1748542254688,-430.0,0.00020273,2]
[362982927,1748542254697,-430.0,0.00020273,2]
[362982928,1748542254707,-192.796,0.00020464,2]
[362982929,1748542254719,-235.817424,0.00020487,2]
[362982930,1748542254730,-777.48,0.00020538,3]
[362982931,1748542254739,-388.74,0.00020538,3]
[362982932,1748542254748,-430.0,0.00020547,2]
[362982933,1748542254758,-430.0,0.00020547,2]
[362982934,1748542254767,-430.0,0.00020547,2]
[362982935,1748542254776,-430.0,0.00020547,2]
[362982936,1748542254785,-2106.58,0.00020547,2]
[362982937,1748542254795,-430.0,0.00020547,2]
[362982938,1748542254806,-289.07,0.00020547,2]
[362982939,1748542254815,-430.0,0.00020547,2]
[362982940,1748542254826,-430.0,0.00020547,2]
[362982941,1748542254835,-430.0,0.00020547,2]
[362982942,1748542254845,-430.0,0.00020547,2]
[362982943,1748542254855,-430.0,0.00020547,2]
[362982944,1748542254864,-430.0,0.00020547,2]
[362982945,1748542254873,-430.0,0.00020547,2]
[362982946,1748542254882,-430.0,0.00020547,2]
[362982947,1748542254891,-430.0,0.00020547,2]
[362982948,1748542254900,-430.0,0.00020547,2]
[362982949,1748542254910,-510.0,0.00020547,2]
[362982950,1748542254919,-535.57411789,0.00020547,2]
[362982951,1748542254928,-264.02194693,0.00020547,2]
[362982952,1748542254938,-430.0,0.00020547,2]
[362982953,1748542254947,-162.48177066,0.00020547,2]
[362982954,1748542254957,-430.0,0.00020547,2]
[362982955,1748542254967,-430.0,0.00020547,2]
[362982956,1748542254976,-430.0,0.00020547,2]
[362982957,1748542254985,-430.0,0.00020547,2]
[362982958,1748542254995,-430.0,0.00020547,2]
[362982959,1748542255004,-490.0,0.00020547,2]
[362982960,1748542255013,-557.26,0.00020547,2]
[362982961,1748542255023,-430.0,0.00020547,2]
[362982962,1748542255032,-430.0,0.00020547,2]
[362982963,1748542255042,-430.0,0.00020547,2]
[362982964,1748542255051,-520.70669063,0.00020547,2]
[362982965,1748542255061,-430.0,0.00020547,2]
[362982966,1748542255070,-430.0,0.00020547,2]
[362982967,1748542255079,-430.0,0.00020547,2]
[362982968,1748542255088,-430.0,0.00020547,2]
[362982969,1748542255098,-430.0,0.00020547,2]
[362982970,1748542255107,-430.0,0.00020547,2]
[362982971,1748542255116,-430.0,0.00020547,2]
[362982972,1748542255126,-680.02,0.00020547,2]
[362982973,1748542255136,-430.0,0.00020547,2]
[362982974,1748542255147,-430.0,0.00020547,2]
[362982975,1748542255162,-430.0,0.00020547,2]
[362982976,1748542255171,-430.0,0.00020547,2]
[362982977,1748542255181,-430.0,0.00020547,2]
[362982978,1748542255190,-534.61,0.00020547,2]
[362982979,1748542255201,-430.0,0.00020547,2]
[362982980,1748542255211,-430.0,0.00020547,2]
[362982981,1748542255220,-430.0,0.00020547,2]
[362982982,1748542255230,-2344.39,0.00020547,2]
[362982983,1748542255241,-430.0,0.00020547,2]
[362982984,1748542255251,-2070.61,0.00020547,2]
[362982985,1748542255260,-430.0,0.00020547,2]
[362982986,1748542255270,-430.0,0.00020547,2]
[362982987,1748542255280,-450.0,0.00020547,2]
[362982988,1748542255289,-430.0,0.00020547,2]
[362982989,1748542255299,-2731.81,0.00020547,2]
[362982990,1748542255308,-7146.31,0.00020547,2]
[362982991,1748542255317,-430.0,0.00020547,2]
[362982992,1748542255327,-430.0,0.00020547,2]
[362982993,1748542255337,-430.0,0.00020547,2]
[362982994,1748542255346,-2451.38,0.00020547,2]
[362982995,1748542255355,-514.69,0.00020547,2]
[362982996,1748542255364,-570.0,0.00020547,2]
[362982997,1748542255374,-430.0,0.00020547,2]
[362982998,1748542255384,-1063.98,0.00020547,2]
[362982999,1748542255393,-430.0,0.00020547,2]
[362983000,1748542255404,-1394.97,0.00020547,2]
[362983001,1748542255413,-6270.05,0.00020547,2]
[362983002,1748542255423,-430.0,0.00020547,2]
[362983003,1748542255432,-430.0,0.00020547,2]
[362983004,1748542255442,-6482.22,0.00020547,2]
[362983005,1748542255451,-3164.14,0.00020547,2]
[362983006,1748542255462,-430.0,0.00020547,2]
[362983007,1748542255472,-2152.2,0.00020547,2]
[362983008,1748542255482,-1252.48,0.00020547,2]
[362983009,1748542255491,-430.0,0.00020547,2]
[362983010,1748542255501,-3469.37,0.00020547,2]
[362983011,1748542255511,-2725.56,0.00020547,2]
[362983012,1748542255520,-279.49,0.00020547,2]
[362983013,1748542255530,-4404.76,0.00020547,2]
[362983014,1748542255540,-430.0,0.00020547,2]
[362983015,1748542255550,-2998.31,0.00020547,2]
[362983016,1748542255560,-650.63,0.00020547,2]
[362983017,1748542255570,-2687.64,0.00020547,2]
[362983018,1748542255579,-3760.2,0.00020547,2]
[362983019,1748542255588,-303.97387247,0.00020547,2]
[362983020,1748542255597,-430.0,0.00020547,2]
[362983021,1748542255608,-5322.44,0.00020547,2]
[362983022,1748542255620,-430.0,0.00020547,2]
[362983023,1748542255630,-430.0,0.00020547,2]
[362983024,1748542255641,-3427.42,0.00020547,2]
[362983025,1748542255653,-677.52,0.00020547,2]
[362983026,1748542255661,-430.0,0.00020547,2]
[362983027,1748542255671,-430.0,0.00020547,2]
[362983028,1748542255680,-430.0,0.00020547,2]
[362983029,1748542255689,-818.87,0.00020547,2]
[362983030,1748542255698,-430.0,0.00020547,2]
[362983031,1748542255707,-430.0,0.00020547,2]
[362983032,1748542255716,-793.39,0.00020547,2]
[362983033,1748542255725,-481.49,0.00020547,2]
[362983034,1748542255735,-1482.97,0.00020547,2]
[362983035,1748542255745,-2584.94,0.00020547,2]
[362983036,1748542255754,-191.65,0.00020547,2]
[362983037,1748542255763,-430.0,0.00020547,2]
[362983038,1748542255773,-430.0,0.00020547,2]
[362983039,1748542255782,-590.34,0.00020547,2]
[362983040,1748542255792,-1878.48,0.00020547,2]
[362983041,1748542255801,-430.0,0.00020547,2]
[362983042,1748542255811,-3294.08,0.00020547,2]
[362983043,1748542255820,-430.0,0.00020547,2]
[362983044,1748542255829,-430.0,0.00020547,2]
[362983045,1748542255839,-430.0,0.00020547,2]
[362983046,1748542255848,-230.31,0.00020547,2]
[362983047,1748542255858,-348.9589167,0.00020547,2]
[362983048,1748542255867,-430.0,0.00020547,2]
[362983049,1748542255876,-600.0,0.00020554,2]
[362983050,1748542255885,-190.55856551,0.00020568,2]
[362983051,1748542255894,-360.85,0.00020761,2]
[362983052,1748542255905,-430.0,0.00020821,2]
[362983053,1748542255914,-430.0,0.00020821,2]
[362983054,1748542255923,-430.0,0.00020821,2]
[362983055,1748542255932,-2106.58,0.00020821,2]
[362983056,1748542255941,-430.0,0.00020821,2]
[362983057,1748542255950,-430.0,0.00020821,2]
[362983058,1748542255960,-430.0,0.00020821,2]
[362983059,1748542255969,-430.0,0.00020821,2]
[362983060,1748542255979,-430.0,0.00020821,2]
[362983061,1748542255988,-268.8068805,0.00020821,2]
[362983062,1748542255998,-510.0,0.00020821,2]
[362983063,1748542256008,-430.0,0.00020821,2]
[362983064,1748542256017,-430.0,0.00020821,2]
[362983065,1748542256027,-430.0,0.00020821,2]
[362983066,1748542256036,-430.0,0.00020821,2]
[362983067,1748542256045,-430.0,0.00020821,2]
[362983068,1748542256055,-533.59,0.00020821,2]
[362983069,1748542256064,-430.0,0.00020821,2]
[362983070,1748542256074,-430.0,0.00020821,2]
[362983071,1748542256084,-430.0,0.00020821,2]
[362983072,1748542256093,-430.0,0.00020821,2]
[362983073,1748542256103,-430.0,0.00020821,2]
[362983074,1748542256112,-430.0,0.00020821,2]
[362983075,1748542256122,-231.90720509,0.00020821,2]
[362983076,1748542256131,-430.0,0.00020821,2]
[362983077,1748542256141,-430.0,0.00020821,2]
[362983078,1748542256152,-680.02,0.00020821,2]
[362983079,1748542256165,-430.0,0.00020821,2]
[362983080,1748542256174,-430.0,0.00020821,2]
[362983081,1748542256183,-430.0,0.00020821,2]
[362983082,1748542256192,-430.0,0.00020821,2]
[362983083,1748542256203,-430.0,0.00020821,2]
[362983084,1748542256212,-534.61,0.00020821,2]
[362983085,1748542256221,-430.0,0.00020821,2]
[362983086,1748542256231,-174.49,0.00020821,2]
[362983087,1748542256241,-430.0,0.00020821,2]
[362983088,1748542256251,-2344.39,0.00020821,2]
[362983089,1748542256261,-430.0,0.00020821,2]
[362983090,1748542256271,-2070.61,0.00020821,2]
[362983091,1748542256281,-530.0,0.00020821,2]
[362983092,1748542256291,-430.0,0.00020821,2]
[362983093,1748542256301,-430.0,0.00020821,2]
[362983094,1748542256312,-2731.81,0.00020821,2]
[362983095,1748542256321,-7146.31,0.00020821,2]
[362983096,1748542256331,-430.0,0.00020821,2]
[362983097,1748542256341,-430.0,0.00020821,2]
[362983098,1748542256460,-430.0,0.00020821,2]
[362983099,1748542256470,-2451.38,0.00020821,2]
[362983100,1748542256481,-514.69,0.00020821,2]
[362983101,1748542256491,-430.0,0.00020821,2]
[362983102,1748542256501,-1063.98,0.00020821,2]
[362983103,1748542256510,-430.0,0.00020821,2]
[362983104,1748542256519,-1394.97,0.00020821,2]
[362983105,1748542256529,-6270.05,0.00020821,2]
[362983106,1748542256539,-194.31,0.00020821,2]
[362983107,1748542256548,-430.0,0.00020821,2]
[362983108,1748542256558,-6482.22,0.00020821,2]
[362983109,1748542256567,-3164.14,0.00020821,2]
[362983110,1748542256577,-430.0,0.00020821,2]
[362983111,1748542256586,-2152.2,0.00020821,2]
[362983112,1748542256595,-1252.48,0.00020821,2]
[362983113,1748542256605,-3469.37,0.00020821,2]
[362983114,1748542256615,-2725.56,0.00020821,2]
[362983115,1748542256624,-4404.76,0.00020821,2]
[362983116,1748542256633,-430.0,0.00020821,2]
[362983117,1748542256642,-2998.31,0.00020821,2]
[362983118,1748542256655,-650.63,0.00020821,2]
[362983119,1748542256664,-2687.64,0.00020821,2]
[362983120,1748542256672,-3760.2,0.00020821,2]
[362983121,1748542256682,-430.0,0.00020821,2]
[362983122,1748542256691,-5322.44,0.00020821,2]
[362983123,1748542256701,-430.0,0.00020821,2]
[362983124,1748542256710,-470.0,0.00020821,2]
[362983125,1748542256719,-3427.42,0.00020821,2]
[362983126,1748542256728,-677.52,0.00020821,2]
[362983127,1748542256738,-430.0,0.00020821,2]
[362983128,1748542256747,-430.0,0.00020821,2]
[362983129,1748542256756,-430.0,0.00020821,2]
[362983130,1748542256766,-818.87,0.00020821,2]
[362983131,1748542256775,-430.0,0.00020821,2]
[362983132,1748542256785,-332.94994507,0.00020821,2]
[362983133,1748542256795,-793.39,0.00020821,2]
[362983134,1748542256804,-481.49,0.00020821,2]
[362983135,1748542256814,-1482.97,0.00020821,2]
[362983136,1748542256824,-2584.94,0.00020821,2]
[362983137,1748542256833,-430.0,0.00020821,2]
[362983138,1748542256842,-430.0,0.00020821,2]
[362983139,1748542256852,-590.34,0.00020821,2]
[362983140,1748542256861,-1878.48,0.00020821,2]
[362983141,1748542256871,-430.0,0.00020821,2]
[362983142,1748542256880,-3294.08,0.00020821,2]
[362983143,1748542256890,-413.55,0.00020821,2]
[362983144,1748542256900,-430.0,0.00020821,2]
[362983145,1748542256910,-430.0,0.00020821,2]
[362983146,1748542256919,-430.0,0.00020821,2]
[362983147,1748542256929,-420.0,0.00020898,2]
[362983148,1748542256939,-1706.56276364,0.000209,4]
[362983149,1748542256948,-1706.56276341,0.00021038,4]
[362983150,1748542256958,-190.55856551,0.00021064,2]
[362983151,1748542256968,-430.0,0.00021095,2]
[362983152,1748542256978,-464.53,0.00021095,2]
[362983153,1748542256988,-490.0,0.00021095,2]
[362983154,1748542256998,-2106.58,0.00021095,2]
[362983155,1748542257009,-430.0,0.00021095,2]
[362983156,1748542257018,-430.0,0.00021095,2]
[362983157,1748542257028,-575.17,0.00021095,2]
[362983158,1748542257038,-430.0,0.00021095,2]
[362983159,1748542257048,-430.0,0.00021095,2]
[362983160,1748542257058,-430.0,0.00021095,2]
[362983161,1748542257067,-430.0,0.00021095,2]
[362983162,1748542257077,-430.0,0.00021095,2]
[362983163,1748542257087,-419.13,0.00021095,2]
[362983164,1748542257096,-343.84605592,0.00021095,2]
[362983165,1748542257106,-430.0,0.00021095,2]
[362983166,1748542257116,-515.92957885,0.00021095,2]
[362983167,1748542257126,-220.0,0.00021095,2]
[362983168,1748542257136,-430.0,0.00021095,2]
[362983169,1748542257145,-680.02,0.00021095,2]
[362983170,1748542257157,-430.0,0.00021095,2]
[362983171,1748542257167,-424.66,0.00021095,2]
[362983172,1748542257178,-430.0,0.00021095,2]
[362983173,1748542257187,-433.14646771,0.00021095,2]
[362983174,1748542257198,-340.0,0.00021095,2]
[362983175,1748542257207,-534.61,0.00021095,2]
[362983176,1748542257217,-430.0,0.00021095,2]
[362983177,1748542257226,-430.0,0.00021095,2]
[362983178,1748542257236,-2344.39,0.00021095,2]
[362983179,1748542257246,-430.0,0.00021095,2]
[362983180,1748542257255,-2070.61,0.00021095,2]
[362983181,1748542257266,-430.0,0.00021095,2]
[362983182,1748542257275,-510.0,0.00021095,2]
[362983183,1748542257286,-2731.81,0.00021095,2]
[362983184,1748542257295,-7146.31,0.00021095,2]
[362983185,1748542257305,-487.35543612,0.00021095,2]
[362983186,1748542257314,-430.0,0.00021095,2]
[362983187,1748542257324,-430.0,0.00021095,2]
[362983188,1748542257337,-2451.38,0.00021095,2]
[362983189,1748542257347,-514.69,0.00021095,2]
[362983190,1748542257358,-430.0,0.00021095,2]
[362983191,1748542257368,-1063.98,0.00021095,2]
[362983192,1748542257378,-430.0,0.00021095,2]
[362983193,1748542257387,-1394.97,0.00021095,2]
[362983194,1748542257397,-6270.05,0.00021095,2]
[362983195,1748542257408,-430.0,0.00021095,2]
[362983196,1748542257418,-6482.22,0.00021095,2]
[362983197,1748542257428,-3164.14,0.00021095,2]
[362983198,1748542257438,-430.0,0.00021095,2]
[362983199,1748542257447,-2152.2,0.00021095,2]
[362983200,1748542257457,-1252.48,0.00021095,2]
[362983201,1748542257466,-3469.37,0.00021095,2]
[362983202,1748542257476,-2725.56,0.00021095,2]
[362983203,1748542257486,-4404.76,0.00021095,2]
[362983204,1748542257495,-430.0,0.00021095,2]
[362983205,1748542257504,-2998.31,0.00021095,2]
[362983206,1748542257514,-650.63,0.00021095,2]
[362983207,1748542257523,-2687.64,0.00021095,2]
[362983208,1748542257533,-3760.2,0.00021095,2]
[362983209,1748542257543,-401.39806111,0.00021095,2]
[362983210,1748542257552,-5322.44,0.00021095,2]
[362983211,1748542257562,-430.0,0.00021095,2]
[362983212,1748542257571,-3427.42,0.00021095,2]
[362983213,1748542257580,-677.52,0.00021095,2]
[362983214,1748542257590,-470.0,0.00021095,2]
[362983215,1748542257599,-430.0,0.00021095,2]
[362983216,1748542257609,-430.0,0.00021095,2]
[362983217,1748542257619,-818.87,0.00021095,2]
[362983218,1748542257628,-430.0,0.00021095,2]
[362983219,1748542257638,-793.39,0.00021095,2]
[362983220,1748542257647,-481.49,0.00021095,2]
[362983221,1748542257658,-1482.97,0.00021095,2]
[362983222,1748542257667,-2584.94,0.00021095,2]
[362983223,1748542257677,-430.0,0.00021095,2]
[362983224,1748542257686,-430.0,0.00021095,2]
[362983225,1748542257695,-590.34,0.00021095,2]
[362983226,1748542257705,-1878.48,0.00021095,2]
[362983227,1748542257714,-430.0,0.00021095,2]
[362983228,1748542257723,-3294.08,0.00021095,2]
[362983229,1748542257732,-430.0,0.00021095,2]
[362983230,1748542257742,-430.0,0.00021095,2]
[362983231,1748542257751,-1200.0,0.00021102,2]
[362983232,1748542257761,-500.0,0.00021164,2]
[362983233,1748542257771,-1706.56276341,0.00021176,4]
[362983234,1748542257780,-151.0,0.000213,3]
[362983235,1748542257790,-1706.56276341,0.00021314,5]
[362983236,1748542257799,-430.0,0.00021369,2]
[362983237,1748542257809,-2106.58,0.00021369,2]
[362983238,1748542257818,-430.0,0.00021369,2]
[362983239,1748542257827,-430.0,0.00021369,2]
[362983240,1748542257837,-430.0,0.00021369,2]
[362983241,1748542257846,-430.0,0.00021369,2]
[362983242,1748542257855,-430.0,0.00021369,2]
[362983243,1748542257865,-430.0,0.00021369,2]
[362983244,1748542257874,-190.0,0.00021369,2]
[362983245,1748542257883,-430.0,0.00021369,2]
[362983246,1748542257893,-680.02,0.00021369,2]
[362983247,1748542257904,-430.0,0.00021369,2]
[362983248,1748542257913,-430.0,0.00021369,2]
[362983249,1748542257923,-534.61,0.00021369,2]
[362983250,1748542257933,-430.0,0.00021369,2]
[362983251,1748542257942,-538.91144787,0.00021369,2]
[362983252,1748542257952,-2344.39,0.00021369,2]
[362983253,1748542257962,-530.0,0.00021369,2]
[362983254,1748542257971,-2070.61,0.00021369,2]
[362983255,1748542257981,-510.0,0.00021369,2]
[362983256,1748542257990,-7146.31,0.00021369,2]
[362983257,1748542257999,-2731.81,0.00021369,2]
[362983258,1748542258009,-222.54170922,0.00021369,2]
[362983259,1748542258017,-430.0,0.00021369,2]
[362983260,1748542258026,-2451.38,0.00021369,2]
[362983261,1748542258036,-514.69,0.00021369,2]
[362983262,1748542258045,-510.0,0.00021369,2]
[362983263,1748542258054,-1063.98,0.00021369,2]
[362983264,1748542258063,-430.0,0.00021369,2]
[362983265,1748542258071,-1394.97,0.00021369,2]
[362983266,1748542258080,-6270.05,0.00021369,2]
[362983267,1748542258088,-430.0,0.00021369,2]
[362983268,1748542258099,-6482.22,0.00021369,2]
[362983269,1748542258107,-3164.14,0.00021369,2]
[362983270,1748542258116,-430.0,0.00021369,2]
[362983271,1748542258124,-2152.2,0.00021369,2]
[362983272,1748542258133,-1252.48,0.00021369,2]
[362983273,1748542258142,-3469.37,0.00021369,2]
[362983274,1748542258153,-2725.56,0.00021369,2]
[362983275,1748542258165,-4404.76,0.00021369,2]
[362983276,1748542258174,-430.0,0.00021369,2]
[362983277,1748542258183,-2998.31,0.00021369,2]
[362983278,1748542258192,-650.63,0.00021369,2]
[362983279,1748542258201,-2687.64,0.00021369,2]
[362983280,1748542258210,-3760.2,0.00021369,2]
[362983281,1748542258220,-5322.44,0.00021369,2]
[362983282,1748542258230,-430.0,0.00021369,2]
[362983283,1748542258241,-3427.42,0.00021369,2]
[362983284,1748542258250,-677.52,0.00021369,2]
[362983285,1748542258260,-281.27,0.00021369,2]
[362983286,1748542258270,-818.87,0.00021369,2]
[362983287,1748542258280,-430.0,0.00021369,2]
[362983288,1748542258289,-793.39,0.00021369,2]
[362983289,1748542258299,-481.49,0.00021369,2]
[362983290,1748542258309,-1482.97,0.00021369,2]
[362983291,1748542258318,-2584.94,0.00021369,2]
[362983292,1748542258328,-430.0,0.00021369,2]
[362983293,1748542258339,-430.0,0.00021369,2]
[362983294,1748542258348,-590.34,0.00021369,2]
[362983295,1748542258358,-1878.48,0.00021369,2]
[362983296,1748542258367,-430.0,0.00021369,2]
[362983297,1748542258377,-3294.08,0.00021369,2]
[362983298,1748542258386,-430.0,0.00021369,2]
[362983299,1748542258396,-1706.56276341,0.00021452,5]
[362983300,1748542258407,-789.89113974,0.00021543,2]
[362983301,1748542258417,-1706.56276341,0.0002159,5]
[362983302,1748542258427,-151.0,0.000216,4]
[362983303,1748542258436,-430.0,0.00021643,2]
[362983304,1748542258446,-2106.58,0.00021643,2]
[362983305,1748542258456,-570.58,0.00021643,2]
[362983306,1748542258465,-430.0,0.00021643,2]
[362983307,1748542258475,-430.0,0.00021643,2]
[362983308,1748542258484,-430.0,0.00021643,2]
[362983309,1748542258493,-568.15928826,0.00021643,2]
[362983310,1748542258503,-523.4,0.00021643,2]
[362983311,1748542258512,-430.0,0.00021643,2]
[362983312,1748542258521,-680.02,0.00021643,2]
[362983313,1748542258531,-430.0,0.00021643,2]
[362983314,1748542258540,-530.0,0.00021643,2]
[362983315,1748542258549,-534.61,0.00021643,2]
[362983316,1748542258558,-430.0,0.00021643,2]
[362983317,1748542258568,-2344.39,0.00021643,2]
[362983318,1748542258577,-2070.61,0.00021643,2]
[362983319,1748542258586,-7146.31,0.00021643,2]
[362983320,1748542258595,-2731.81,0.00021643,2]
[362983321,1748542258603,-430.0,0.00021643,2]
[362983322,1748542258612,-2451.38,0.00021643,2]
[362983323,1748542258621,-514.69,0.00021643,2]
[362983324,1748542258629,-430.0,0.00021643,2]
[362983325,1748542258638,-1063.98,0.00021643,2]
[362983326,1748542258647,-1394.97,0.00021643,2]
[362983327,1748542258656,-6270.05,0.00021643,2]
[362983328,1748542258664,-430.0,0.00021643,2]
[362983329,1748542258673,-6482.22,0.00021643,2]
[362983330,1748542258681,-3164.14,0.00021643,2]
[362983331,1748542258690,-430.0,0.00021643,2]
[362983332,1748542258698,-2152.2,0.00021643,2]
[362983333,1748542258706,-1252.48,0.00021643,2]
[362983334,1748542258715,-3469.37,0.00021643,2]
[362983335,1748542258723,-2725.56,0.00021643,2]
[362983336,1748542258731,-4404.76,0.00021643,2]
[362983337,1748542258740,-430.0,0.00021643,2]
[362983338,1748542258749,-2998.31,0.00021643,2]
[362983339,1748542258759,-650.63,0.00021643,2]
[362983340,1748542258768,-2687.64,0.00021643,2]
[362983341,1748542258777,-3760.2,0.00021643,2]
[362983342,1748542258787,-5322.44,0.00021643,2]
[362983343,1748542258796,-430.0,0.00021643,2]
[362983344,1748542258806,-3427.42,0.00021643,2]
[362983345,1748542258814,-677.52,0.00021643,2]
[362983346,1748542258824,-818.87,0.00021643,2]
[362983347,1748542258834,-430.0,0.00021643,2]
[362983348,1748542258843,-793.39,0.00021643,2]